{"text_format":"3","workbook":"xlsx","n_sheets":2,"sheets":["CÓMO USAR ESTE LIBRO","LIBRO DE CALIFICACIONES"],"not_rendered":{"defined_names":5},"read":"whole","date_system":"1900"}

{"sheet":"CÓMO USAR ESTE LIBRO","index":0,"n_rows":10,"n_cols":2,"rows_kept":10}
[null,"INSTRUCCIONES"]
[null,"Use la hoja de cálculo LIBRO DE CALIFICACIONES para calcular las calificaciones donde a cada tarea le corresponde un número concreto de puntos. "]
[null,"Instrucciones: No olvide guardar copias de seguridad de sus calificaciones."]
[null,"1. Rellene el nombre de la escuela, la información de la clase, los nombres de los alumnos y los identificadores de los estudiantes (opcional).   "]
[null,"2. Ajuste la tabla de Calificación y Nota media para que coincida con el sistema de puntuación normal que usa."]
[null,"3. Rellene los nombres de las tareas o pruebas a partir de la celda G7, junto con el porcentaje que corresponde a cada una (como \"Final\" y \"50%\"). "]
[null,"4. Rellene las puntuaciones para cada alumno en cada tarea o prueba. Las columnas de \"Puntuación\", \"Nota alfabética\" y \"Nota media\" se calculan automáticamente, pero se pueden reemplazar si lo desea. En la forma en que se calculan las calificaciones, la calificación media y final quedan incompletas hasta que se hayan añadido todos los resultados."]
[null,"Si desea cambiar el área que se imprime, use el comando \"Área de impresión\" en el menú \"Diseño de página\"."]
[null,"La Puntuación, la Nota alfabética y la Nota media no son válidas hasta que el 100% de las pruebas y las tareas se hayan completado. "]
[null,"Escriba cada tarea o prueba y el porcentaje que le corresponde de la calificación total en las celdas G7 a W8."]

{"sheet":"LIBRO DE CALIFICACIONES","index":1,"n_rows":20,"n_cols":23,"rows_kept":20,"merged":[[5,1,5,5],[6,1,6,3],[6,4,6,5],[7,1,8,3],[7,4,7,5],[8,4,8,5],[15,1,15,5],[16,1,16,2],[17,1,17,2],[18,1,18,2],[19,1,19,2]]}
[null,"EL NOMBRE DE LA ESCUELA"]
[]
[{"$nulls":6},"Puntuación",{"v":0,"d":"0%"},{"v":0.6,"d":"60%"},{"v":0.63,"d":"63%"},{"v":0.67,"d":"67%"},{"v":0.7,"d":"70%"},{"v":0.73,"d":"73%"},{"v":0.77,"d":"77%"},{"v":0.8,"d":"80%"},{"v":0.83,"d":"83%"},{"v":0.87,"d":"87%"},{"v":0.9,"d":"90%"},{"v":0.93,"d":"93%"},{"v":0.97,"d":"97%"}]
[{"$nulls":6},"Nota alfabética","F","D-","D","D+","C-","C","C+","B-","B","B+","A-","A","A+"]
[{"$nulls":6},"Nota media",0,0.67,1,1.33,1.67,2,2.33,2.67,3,3.33,3.67,4,4]
[null,"Nombre del profesor"]
[null,"Clase o proyecto.",null,null,"Nombre de la prueba o tarea"]
[null,"Año / Semestre / Trimestre",null,null,"Porcentaje (deben sumar 100%)"]
[{"$nulls":4},{"$f":"\"Porcentaje total: \"&SUM(G8:W8)*100&\"%\"","v":"Porcentaje total: 0%"}]
[null,"Nombre del alumno","Id. del alumno","Puntuación","Nota alfabética","Nota media","Columna6","Columna7","Columna8","Columna9","Columna10","Columna11","Columna12","Columna13","Columna14","Columna15","Columna16","Columna17","Columna18","Columna19","Columna20","Columna21","Columna22"]
[{"$nulls":3},{"$f":"(IF(SUM(Calificaciones[[#This Row],[Columna6]:[Columna22]]),ROUND(SUMPRODUCT($G$8:$W$8,Calificaciones[[#This Row],[Columna6]:[Columna22]]),2),\"\"))","v":""},{"$f":"IF(Calificaciones[[#This Row],[Puntuación]]<>\"\",HLOOKUP(Calificaciones[[#This Row],[Puntuación]],GradeTable,2),\"\")","v":""},{"$f":"IF(Calificaciones[[#This Row],[Puntuación]]<>\"\",HLOOKUP(Calificaciones[[#This Row],[Puntuación]],GradeTable,3),\"\")","v":""}]
[{"$nulls":3},{"$f":"(IF(SUM(Calificaciones[[#This Row],[Columna6]:[Columna22]]),ROUND(SUMPRODUCT($G$8:$W$8,Calificaciones[[#This Row],[Columna6]:[Columna22]]),2),\"\"))","v":""},{"$f":"IF(Calificaciones[[#This Row],[Puntuación]]<>\"\",HLOOKUP(Calificaciones[[#This Row],[Puntuación]],GradeTable,2),\"\")","v":""},{"$f":"IF(Calificaciones[[#This Row],[Puntuación]]<>\"\",HLOOKUP(Calificaciones[[#This Row],[Puntuación]],GradeTable,3),\"\")","v":""}]
[{"$nulls":3},{"$f":"(IF(SUM(Calificaciones[[#This Row],[Columna6]:[Columna22]]),ROUND(SUMPRODUCT($G$8:$W$8,Calificaciones[[#This Row],[Columna6]:[Columna22]]),2),\"\"))","v":""},{"$f":"IF(Calificaciones[[#This Row],[Puntuación]]<>\"\",HLOOKUP(Calificaciones[[#This Row],[Puntuación]],GradeTable,2),\"\")","v":""},{"$f":"IF(Calificaciones[[#This Row],[Puntuación]]<>\"\",HLOOKUP(Calificaciones[[#This Row],[Puntuación]],GradeTable,3),\"\")","v":""}]
[{"$nulls":3},{"$f":"(IF(SUM(Calificaciones[[#This Row],[Columna6]:[Columna22]]),ROUND(SUMPRODUCT($G$8:$W$8,Calificaciones[[#This Row],[Columna6]:[Columna22]]),2),\"\"))","v":""},{"$f":"IF(Calificaciones[[#This Row],[Puntuación]]<>\"\",HLOOKUP(Calificaciones[[#This Row],[Puntuación]],GradeTable,2),\"\")","v":""},{"$f":"IF(Calificaciones[[#This Row],[Puntuación]]<>\"\",HLOOKUP(Calificaciones[[#This Row],[Puntuación]],GradeTable,3),\"\")","v":""}]
[{"$nulls":3},{"$f":"(IF(SUM(Calificaciones[[#This Row],[Columna6]:[Columna22]]),ROUND(SUMPRODUCT($G$8:$W$8,Calificaciones[[#This Row],[Columna6]:[Columna22]]),2),\"\"))","v":""},{"$f":"IF(Calificaciones[[#This Row],[Puntuación]]<>\"\",HLOOKUP(Calificaciones[[#This Row],[Puntuación]],GradeTable,2),\"\")","v":""},{"$f":"IF(Calificaciones[[#This Row],[Puntuación]]<>\"\",HLOOKUP(Calificaciones[[#This Row],[Puntuación]],GradeTable,3),\"\")","v":""}]
[]
[null,"Resumen de la clase",null,"Puntuación","Nota alfabética","Nota media","","","","","","","","","","",""]
[null," Media",null,{"$f":"IFERROR(AVERAGE(Calificaciones[[#All],[Puntuación]]),0)","v":{"v":0,"d":"0.0%"}},{"$f":"IFERROR(HLOOKUP(D18,GradeTable,2),\"\")","v":"F"},{"$f":"IFERROR(AVERAGE(Calificaciones[[#All],[Nota media]]),0)","v":0},"","","","","","","","","","","","","","","","",""]
[null," Puntuación más alta",null,{"$f":"IFERROR(MAX(Calificaciones[[#All],[Puntuación]]),0)","v":{"v":0,"d":"0.0%"}},{"$f":"IFERROR(HLOOKUP(D19,GradeTable,2),\"\")","v":"F"},{"$f":"IFERROR(MAX(Calificaciones[[#All],[Nota media]]),0)","v":0},"","","","","","","","","","","","","","","","",""]
[null," Puntuación más baja",null,{"$f":"IFERROR(MIN(Calificaciones[[#All],[Puntuación]]),0)","v":{"v":0,"d":"0.0%"}},{"$f":"IFERROR(HLOOKUP(D20,GradeTable,2),\"\")","v":"F"},{"$f":"IFERROR(MIN(Calificaciones[[#All],[Nota media]]),0)","v":0},"","","","","","","","","","","","","","","","",""]